Cogmind - Beta 15 @@@ ROGUE MODE // 2025.10.08 @ 16:34:51 Player: AussieBBQ Result: Destroyed by D-53 Grenadier with Mini Grenade Launcher Performance ------------- Evolutions (0) 0 Regions Visited (2) 400 Robots Destroyed (15) 75 Value Destroyed (322) 322 Prototype IDs (0) 0 Alien Tech Used (0) 0 Bonus (0) 0 TOTAL SCORE: 797 Bonus ------- None Cogmind --------- Core Integrity 0/250 Matter 90/300 Energy 52/100 System Corruption 0% Temperature Cool (0) Movement Walking (260) Ox2 Location -10/Mines Parts ------- > --- POWER (1) -------- (None) > --- PROPULSION (2) --- Aluminum Leg Aluminum Leg > --- UTILITY (2) ------ Improved Heat Sink High-capacity Storage Unit > --- WEAPON (2) ------- (None) > --- INVENTORY (20) --- Light Treads Light Treads Light Treads Light Treads Light Treads Aluminum Leg Small Storage Unit Huge Storage Unit Small Laser Small Laser Light Assault Rifle Light Assault Rifle Light Assault Rifle Grenade Launcher Grenade Launcher Mining Laser Peak State ------------ > --- POWER ------------ Ion Engine > --- PROPULSION ------- Light Treads Light Treads > --- UTILITY ---------- Improved Heat Sink High-capacity Storage Unit > --- WEAPON ----------- Small Laser Light Assault Rifle > --- INVENTORY -------- Ion Engine Ion Engine Ion Engine Aluminum Leg Aluminum Leg Aluminum Leg Small Storage Unit Huge Storage Unit Small Laser Mining Laser [Rating: 10] Favorites ----------- Power Ion Engine Engine Ion Engine Propulsion Light Treads Treads Light Treads Leg Aluminum Leg Utility High-capacity Storage Unit Device Improved Heat Sink Storage High-capacity Storage Unit Weapon Light Assault Rifle Energy Gun Small Laser Ballistic Gun Light Assault Rifle Launcher Grenade Launcher Build | -11 -10 -10 ------- Run | Yrd Mat Min Slots Evolved . | . . . Power . | . . . Propulsion . | . . . Utility . | . . . Weapon . | . . . Parts Attached 23 | 9 10 4 Power 4 | 1 2 1 Engine 4 | 1 2 1 Core . | . . . Reactor . | . . . Propulsion 8 | 4 2 2 Treads 6 | 2 2 2 Leg 2 | 2 . . Wheel . | . . . Hover . | . . . Flight . | . . . Utility 4 | 2 2 . Device 2 | 1 1 . Storage 2 | 1 1 . Processor . | . . . Hackware . | . . . Protection . | . . . Artifact . | . . . Weapon 7 | 2 4 1 Energy Gun 2 | 1 1 . Energy Cannon . | . . . Ballistic Gun 3 | 1 2 . Ballistic Cannon . | . . . Launcher 2 | . 1 1 Special Weapon . | . . . Impact Weapon . | . . . Slashing Weapon . | . . . Piercing Weapon . | . . . Special Melee Weapon . | . . . Unidentified Prototypes . | . . . Parts Lost 6 | . 2 4 Power 2 | . . 2 Propulsion 1 | . . 1 Utility 1 | . 1 . Weapon 2 | . 1 1 Highest Loss Streak 4 | . 2 4 To Critical Strikes . | . . . Average Backups 9 | 6 10 16 Power 1 | . 1 . Propulsion 3 | 3 3 7 Utility 1 | . 2 2 Weapon 2 | 1 2 7 Tool/Special . | . . . Unused Backups 8 | . 3 5 Power . | . . . Propulsion 3 | . 2 1 Utility 2 | . 1 1 Weapon 3 | . . 3 Tool/Special . | . . . Average Slot Usage (%) 99 | . 99 95 Engine 13 | . 14 11 Treads 23 | . 22 28 Leg 4 | . 5 . Device 13 | . 13 14 Storage 14 | . 14 14 Energy Gun 11 | . 12 . Ballistic Gun 14 | . 14 14 Launcher 1 | . . 11 Peak Build Rating 10 | 8 10 10 Average Rating 8 | 6 8 9 On Entrance 6 | . 8 10 Naked Turns . | . . . Heaviest Build 50 | 13 50 50 Greatest Support 40 | 40 40 40 Greatest Overweight (x) 2 | . 1 2 Average Overweight (x) . | . . 1 Largest Inventory Capacity 20 | 8 20 20 Average Capacity 16 | 7 17 20 Most Carried 17 | 8 17 17 Average Carried 9 | 6 10 16 Final Capacity 20 | 8 20 20 Final Carried 17 | 8 17 16 Class Distribution -------------------- 100% | Mutant Dominant Class ---------------- Mutant | -10/Materials Mutant | -10/Mines Resources | -11 -10 -10 ----------- Run | Yrd Mat Min Matter Collected 489 | 288 201 . Remotely . | . . . Salvage Created 470 | 79 363 28 Parts 32 | 14 18 . Haulers Intercepted . | . . . Recyclers Shooed . | . . . Parts Field Recycled . | . . . Retrieved Matter . | . . . Parts Self-Destructed . | . . . Prevented . | . . . Kills | -11 -10 -10 ------- Run | Yrd Mat Min Combat Hostiles Destroyed 28 | . 8 20 Guns 7 | . 7 . AOE 21 | . 1 20 Classes Destroyed 7 | 1 5 1 Worker 1 | . 1 . Tunneler 4 | 4 . . Operator 1 | . 1 . Watcher 1 | . 1 . Swarmer 1 | . 1 . Grunt 7 | . 7 . Assembled 20 | . . 20 Best Kill Streak 22 | 1 2 22 Combat Bots Only 21 | . 2 21 Max Kills in Single Turn 4 | 1 2 4 Gunslinging . | . . . Exploded 4 | . 1 4 Melee . | . . . Uniques/NPCs Destroyed . | . . . Combat | -11 -10 -10 -------- Run | Yrd Mat Min Hostile Shots Fired 109 | . 54 55 Missed 34 | . 13 21 Hits 75 | . 41 34 Melee 2 | . . 2 Projectile 73 | . 41 32 AOE 18 | . . 18 Critical Strikes 1 | . 1 . Damage Taken 1643 | . 547 1096 Core 280 | . 93 187 Absorbed by Shields . | . . . Core Remaining (%) 100 | 100 . . Volleys Fired 64 | 10 42 12 Largest 2 | 2 2 1 Hottest 60 | 60 60 30 Shots Fired 114 | 20 82 12 Gun 101 | 20 81 . Cannon . | . . . Launcher 13 | . 1 12 Special . | . . . Kinetic 51 | 10 41 . Thermal 42 | 10 32 . Explosive 13 | . 1 12 Electromagnetic 8 | . 8 . Robot Hit Streak 11 | 8 11 4 Robot Miss Streak 3 | 2 3 1 Penetration Max . | . . . Secondary Targets 1 | . 1 . Max Gunslinging Chain 1 | . 1 . Shots Hit Robots 78 | 14 59 5 Core Hits 83 | 6 24 53 Critical Kills . | . . . Critical Parts Destroyed . | . . . Critical Strikes . | . . . Melee Attacks . | . . . Impact . | . . . Slashing . | . . . Piercing . | . . . Sneak Attacks . | . . . Combat Hostiles . | . . . Follow-up Attacks . | . . . Damage Inflicted 2008 | 137 645 1226 Guns 719 | 137 582 . Cannons . | . . . Explosions 1289 | . 63 1226 Melee . | . . . Ramming . | . . . Kinetic 259 | 49 210 . Thermal 376 | 88 288 . Explosive 1289 | . 63 1226 Electromagnetic 84 | . 84 . Impact . | . . . Slashing . | . . . Piercing . | . . . Highest Corruption . | . . . Average Corruption . | . . . Corruption Purged . | . . . Corruption Blocked . | . . . Overload Shots . | . . . Overflow Damage 19 | . . 19 Projectiles . | . . . Explosions 19 | . . 19 Melee . | . . . Knockbacks . | . . . Impact . | . . . Kinetic . | . . . Secondary . | . . . Self-Inflicted Damage 158 | . 30 128 Shots 5 | . 1 4 Rammed . | . . . Targets Rammed . | . . . Kicked . | . . . Crushed . | . . . Highest Temperature 110 | 40 110 . Average Temperature 33 | 17 37 . Received Heat Transfer 300 | . 300 . Siege Activations . | . . . Martial Activations . | . . . Shielding Activations . | . . . Robots Disrupted . | . . . Combat Hostiles . | . . . Robots Corrupted . | . . . Combat Hostiles . | . . . Parts Fried . | . . . Impact Corruptions . | . . . Robots Melted . | . . . Combat Hostiles . | . . . Parts Melted 2 | . 2 . Heat Transferred 850 | 200 650 . Parts Sabotaged . | . . . Parts Stolen . | . . . Parts Stripped . | . . . Power Chain Reactions . | . . . Alert | -11 -10 -10 ------- Run | Yrd Mat Min Maximum Alert Level . | . . . Low Security (%) 100 | 100 100 100 Level 1 . | . . . Level 2 . | . . . Level 3 . | . . . Level 4 . | . . . Level 5 . | . . . High Security . | . . . Max Security . | . . . Peak Influence 67 | 5 67 42 Initial 10 | . . 10 Average 9 | . 11 23 Influence Increases 301 | 20 245 36 Destroy 0b10 Robot/C 160 | . 160 . Destroy 0b10 Robot/NC 35 | 20 15 . Destroy Leader 32 | . 32 . Destroy Structure 44 | . 8 36 Lose Combat Pursuer 30 | . 30 . Influence Decreases 301 | 20 216 65 Entered New Map 19 | . . 19 Time Decay 215 | 20 175 20 Lost Part 46 | . 20 26 Purge Threat 21 | . 21 . Squads Dispatched 3 | . 3 . Investigation . | . . . Extermination . | . . . Reinforcement 3 | . 3 . Assault . | . . . Garrison . | . . . Intercept . | . . . Searches Triggered . | . . . Construction Impeded . | . . . Haulers Reinforced . | . . . Active Scanning Responses . | . . . Cargo Convoy Interrupts . | . . . Stealth | -11 -10 -10 --------- Run | Yrd Mat Min Distress Signals 4 | . 4 . Communications Jammed . | . . . Distress Signals . | . . . Times Spotted 39 | . 17 22 Peak Tracking Total 20 | . 4 20 Tactical Retreats 2 | . 2 . Traps | -11 -10 -10 ------- Run | Yrd Mat Min Traps Triggered 3 | . 3 . Indirectly . | . . . Trap Hack Attempts . | . . . Triggered . | . . . Disarmed . | . . . Reprogrammed . | . . . Reused . | . . . Traps Extracted . | . . . Installed . | . . . Triggered . | . . . Machines | -11 -10 -10 ---------- Run | Yrd Mat Min Machines Disabled . | . . . Max in Single Turn . | . . . Machines Repaired . | . . . Machines Dismantled . | . . . Machines Sabotaged . | . . . Overloaded Fab Kills . | . . . Hacking | -11 -10 -10 --------- Run | Yrd Mat Min Machines Accessed 3 | . 3 . Terminals 3 | . 3 . Fabricators . | . . . Repair Stations . | . . . Recycling Units . | . . . Scanalyzers . | . . . Garrison Access . | . . . Total Hacks 7 | . 7 . Successful 4 | . 4 . Failed 3 | . 3 . Catastrophic 1 | . 1 . Database Lockouts . | . . . Manual 3 | . 3 . Terminals 7 | . 7 . Fabricators . | . . . Repair Stations . | . . . Recycling Units . | . . . Scanalyzers . | . . . Garrison Access . | . . . Terminal Hacks 4 | . 4 . Unreport Threat 2 | . 2 . Hauler Manifests 1 | . 1 . Zone Layout 1 | . 1 . Fabricator Hacks . | . . . Repair Station Hacks . | . . . Recycling Unit Hacks . | . . . Scanalyzer . | . . . Garrison Access Hacks . | . . . Unauthorized Hacks . | . . . Terminals . | . . . Fabricators . | . . . Repair Stations . | . . . Recycling Units . | . . . Scanalyzers . | . . . Garrison Access . | . . . Data Cores Recovered . | . . . Used . | . . . Hacking Detections 3 | . 3 . Full Trace Events . | . . . Feedback Events . | . . . Feedback Blocked . | . . . Robot Schematics Acquired . | . . . Robots Built . | . . . Authchips . | . . . Time . | . . . Total Robot Build Rating . | . . . Part Schematics Acquired . | . . . Parts Built . | . . . Authchips . | . . . Time . | . . . Total Part Build Rating . | . . . Parts Repaired . | . . . Time . | . . . Parts Recycled . | . . . Recycled Matter . | . . . Retrieved Matter . | . . . Retrieved Components . | . . . Parts Scanalyzed . | . . . Part Schematics Acquired . | . . . Parts Damaged . | . . . Bothacking | -11 -10 -10 ------------ Run | Yrd Mat Min Used RIF Installer . | . . . Robots Hacked . | . . . Non-combat . | . . . Combat . | . . . Robot Hacks Applied . | . . . Relay Couplers Released . | . . . Fabnet Peak Effective % . | . . . Robots Rewired . | . . . Allies Hacked . | . . . Hacks Repelled . | . . . Allies | -11 -10 -10 -------- Run | Yrd Mat Min Total Allies . | . . . Largest Group . | . . . Highest-Rated Group . | . . . Highest-Rated Ally . | . . . Total Orders . | . . . Ally Attacks . | . . . Total Damage . | . . . Kills . | . . . Allies Corrupted . | . . . Allies Melted . | . . . Intel | -11 -10 -10 ------- Run | Yrd Mat Min Active Infowar (turns) 544 | 122 422 . Seismic 544 | 122 422 . Robot Analysis Total . | . . . Derelict Logs Recovered . | . . . Drone Launches . | . . . Drone Recoveries . | . . . Exploration | -11 -10 -10 ------------- Run | Yrd Mat Min Turns Passed 1315 | 231 1027 57 Spaces Moved 546 | 134 402 10 Core 4 | 4 . . Treads 317 | 22 286 9 Legs 225 | 108 116 1 Wheels . | . . . Hover . | . . . Flight . | . . . Fastest Speed 50 | 50 120 240 Average Speed 186 | 124 205 242 Slowest Speed 260 | 160 240 260 Overloaded Moves . | . . . Propulsion Burnouts . | . . . Robots Hopped . | . . . Potential Cave-ins . | . . . Cave-ins Triggered . | . . . Exploration Rate (%) 27 | 7 64 11 Regions Visited 2 Branch Regions 1 Pre-discovered Areas . | . . . Known Exits Taken . | . . . Unknown Exits Taken 2 | 1 1 . Scrap Searched . | . . . Spaces Dug . | . . . Terrain Destroyed 64 | . 8 56 Melee . | . . . Projectile . | . . . AOE 64 | . 8 56 Terrain Rammed . | . . . Walls Destroyed . | . . . Machines Disabled . | . . . Actions | -11 -10 -10 --------- Run | Yrd Mat Min Total 733 | 176 527 30 Wait 64 | 12 52 . Move 544 | 133 401 10 Hop . | . . . Pick Up 18 | 9 9 . Fast Attach 12 | 6 6 . Attach 5 | 2 1 2 Detach 4 | 1 2 1 Swap 17 | 3 9 5 Drop 5 | . 5 . Fire 64 | 10 42 12 Melee . | . . . Ram . | . . . Kick . | . . . Crush . | . . . Escape Stasis . | . . . Rewire . | . . . Trap . | . . . Miscellaneous . | . . . Route ------- -11/Scrapyard -10/Materials (discovered 3 exits: [*Mat] / [*Min] / [*Sub]) -10/Mines History --------- Turn | Location | Event 10 | -11/Scrapyard | Discovered new exit (range 15) 232 | -11/Scrapyard | Entered Materials 341 | -10/Materials | Build established: Mutant 830 | -10/Materials | Discovered new exit (range 5) 1119 | -10/Materials | Discovered new exit (range 4) 1226 | -10/Materials | Discovered new exit (range 14) 1259 | -10/Materials | Entered Mines 1260 | -10/Mines | Assembled infested the area 1275 | -10/Mines | Core integrity fell below 50% 1303 | -10/Mines | Destroyed 21 combat bots 1305 | -10/Mines | Core integrity fell below 20% 1316 | -10/Mines | Destroyed by D-53 Grenadier with Mini Grenade Launcher Last Messages --------------- 01272_ as-58719 destroyed. [Achievement: Exterminator] 01274_ Destroyed Asb. Hover Unit. 01276_ as-46326 destroyed. 01280_ as-87643 destroyed. 01280_ as-02643 destroyed. 01280_ as-46525 destroyed. [Achievement: Killing Spree] 01282_ as-36498 destroyed. 01285_ The unstable cave ceiling collapses. 01290_ C-30 ARC bursts open, deploying its payload. 01290_ D-53 Grenadier unfolds itself. 01292_ Ion Engine destroyed. 01302_ The unstable cave ceiling collapses. 01306_ Grenade Launcher destroyed. 01306_ Ion Engine destroyed. 01311_ The unstable cave ceiling collapses. 01311_ Lgt. Treads destroyed. 01316_ The unstable cave ceiling collapses. Map ----- +----------------------------------------------------+ | | | | | | | | | | | | | | | | | | | | | | | | | | | | | | | | | | | | | | | | | ???????????????????????########?????????????????? | | ??????????????????????## ##????????????????? | | ?????????????????????## ###??????????????? | | ?????????????????????# ##????#######??? | | ??????????????????#### # ##? #??? | | ??????????????????# @ # ??? | | ??????????????????# ### # ??? | | ?????????????????????# # ??? | | ?????????????????????## """ ??????? | | ??????????????????????## """ ?????? | | ???????????????????????# u """ ?????? | | ???????????????????????# # """ ?????? | | ???????????????????????# ## dd #?????? | | ??????????????????????? ?## ##?????? | | ??????????????????????## ??## #??????? | | ???????????????????????# ???## ?????? | | ???????????????????????# ???? ## #????? | | ???????????????????????# ???# ? #????? | | ????????????????????????????# # ??# ##????? | | ????????????????????????????## ?? #?????? | | ????????????????????????????? ???###?????? | | ????????????????????????????? ??????????? | | ????????????????????????????##" ??????????? | | ?????????????????????????????"%" "# ??????????? | | ????????????????????????????? " ###??????????? | | ????????????????????????????? ?????????????? | | ??????????????????????????????? ?????????????? | | ????????????????????????????????????????????????? | | ????????????????????????????????????????????????? | | ????????????????????????????????????????????????? | +----------------------------------------------------+ Best States ------------- Heat Dissipation 39 Energy Generation 10 Energy Capacity 250 Matter Stores 300 Matter Capacity 300 Sight Range 16 Terrain Scan Density 10 Evasion (%) 55 Recoil Reduction 2 Item Schematics ----------------- None Robot Schematics ------------------ None Fabricated ------------ Nothing Repaired ---------- Nothing Alien Tech Used ----------------- None Achievements -------------- Exterminator Hunted Killing Spree Challenges ------------ None Game ------ Seed PhasingDirtyRecalibrator Manual? 0 Play Time 00:14:14 Cumulative 13.2 hours Start 2025.10.08 @ 16:10:17 End 2025.10.08 @ 16:34:51 Sessions 1 Manual Loads 0 Difficulty Rogue Special Mode None Game No. 29 Rogue 29 Adventurer 0 Explorer 0 Win Type - Total 0 Types 0/0/0/0/0/0/0/0/0/0 Lore% 17 Gallery% 24 Achievement% 22 Wizard Run 0 Options --------- Layout 1 ASCII 0 Keyboard 0 Movement Numpad Keybinds 0 Fullscreen 2 Font 24/Smallcaps Map View 50x35 Zoom Use 0% Tactical HUD 1 Map Filters NONE Filters NONE Steam 1 RUN: 33d518c9-c540-4008-97c3-c1ff34aaacb3